[Event "Titled Tuesday Blitz June 13 Late 2023"]
[White "Gomez Ledo, Roberto Carlos"]
[Black "Chigaev, Maksim"]
[WhiteFideId "3507076"]
[BlackFideId "4108116"]
[WhiteElo "2378"]
[BlackElo "2561"]
[Result "1-0"]
[Round "6"]
[TimeControl "180+2"]
[Date "2023.06.13"]
[WhiteClock "0:00:14"]
[BlackClock "0:00:00"]
[Board "35"]

1. d4 {[%clk 0:03:00]}  Nf6 {[%clk 0:02:59]} 2. Bf4 {[%clk 0:03:00]}  d6 {[%clk 0:02:59]} 3. Nc3 {[%clk 0:02:56]}  Nbd7 {[%clk 0:02:59]} 4. Nf3 {[%clk 0:02:54]}  c5 {[%clk 0:02:59]} 5. e3 {[%clk 0:02:42]}  g6 {[%clk 0:02:57]} 6. h3 {[%clk 0:02:41]}  Bg7 {[%clk 0:02:57]} 7. Be2 {[%clk 0:02:41]}  O-O {[%clk 0:02:55]} 8. O-O {[%clk 0:02:41]}  b6 {[%clk 0:02:09]} 9. Bh2 {[%clk 0:02:35]}  Bb7 {[%clk 0:02:08]} 10. d5 {[%clk 0:02:25]}  a6 {[%clk 0:02:04]} 11. a4 {[%clk 0:02:24]}  Ne8 {[%clk 0:02:04]} 12. e4 {[%clk 0:02:22]}  Nc7 {[%clk 0:02:03]} 13. Re1 {[%clk 0:02:18]}  Rb8 {[%clk 0:02:03]} 14. Bf1 {[%clk 0:02:15]}  f6 {[%clk 0:02:03]} 15. h4 {[%clk 0:02:10]}  Bc8 {[%clk 0:01:57]} 16. h5 {[%clk 0:02:09]}  g5 {[%clk 0:01:52]} 17. Nd2 {[%clk 0:01:58]}  b5 {[%clk 0:01:38]} 18. Be2 {[%clk 0:01:56]}  b4 {[%clk 0:01:28]} 19. Na2 {[%clk 0:01:49]}  Ne5 {[%clk 0:01:12]} 20. Nc1 {[%clk 0:01:42]}  f5 {[%clk 0:01:06]} 21. exf5 {[%clk 0:01:33]}  Bxf5 {[%clk 0:01:07]} 22. Nc4 {[%clk 0:01:28]}  Nxc4 {[%clk 0:01:02]} 23. Bxc4 {[%clk 0:01:29]}  h6 {[%clk 0:01:03]} 24. Nd3 {[%clk 0:01:25]}  Kh8 {[%clk 0:00:59]} 25. g4 {[%clk 0:01:09]}  Bh7 {[%clk 0:00:56]} 26. f4 {[%clk 0:01:04]}  gxf4 {[%clk 0:00:43]} 27. Nxf4 {[%clk 0:01:01]}  Qd7 {[%clk 0:00:29]} 28. Bd3 {[%clk 0:00:50]}  Bd4+ {[%clk 0:00:21]} 29. Kh1 {[%clk 0:00:48]}  Nxd5 {[%clk 0:00:17]} 30. Nxd5 {[%clk 0:00:43]}  Qc6 {[%clk 0:00:12]} 31. Bxh7 {[%clk 0:00:41]}  Kxh7 {[%clk 0:00:10]} 32. Qd3+ {[%clk 0:00:40]}  Kh8 {[%clk 0:00:10]} 33. Qe4 {[%clk 0:00:40]}  e5 {[%clk 0:00:04]} 34. c3 {[%clk 0:00:36]}  bxc3 {[%clk 0:00:03]} 35. bxc3 {[%clk 0:00:36]}  Bf2 {[%clk 0:00:02]} 36. Re2 {[%clk 0:00:31]}  Bh4 {[%clk 0:00:02]} 37. Rg1 {[%clk 0:00:20]}  Bg5 {[%clk 0:00:03]} 38. c4 {[%clk 0:00:15]}  Rb7 {[%clk 0:00:02]} 39. Qg6 {[%clk 0:00:14]}  Rg7 {[%clk 0:00:00]} 40. Bxe5 {[%clk 0:00:14]} 1-0


[Site "https://www.chess.com"]

[Event "Titled Tuesday Blitz June 13 Late 2023"]
[White "Chernobay, Artem"]
[Black "Bazeev, German"]
[WhiteFideId "4167406"]
[BlackFideId "24119350"]
[WhiteElo "2474"]
[BlackElo "2466"]
[Result "0-1"]
[Round "6"]
[TimeControl "180+2"]
[Date "2023.06.13"]
[WhiteClock "0:00:00"]
[BlackClock "0:00:34"]
[Board "37"]

1. d4 {[%clk 0:03:00]}  Nf6 {[%clk 0:02:59]} 2. c4 {[%clk 0:03:01]}  e6 {[%clk 0:02:59]} 3. Nf3 {[%clk 0:03:01]}  b6 {[%clk 0:02:59]} 4. g3 {[%clk 0:03:01]}  Bb7 {[%clk 0:02:58]} 5. Bg2 {[%clk 0:03:01]}  Bb4+ {[%clk 0:02:59]} 6. Bd2 {[%clk 0:02:56]}  c5 {[%clk 0:02:58]} 7. O-O {[%clk 0:02:55]}  O-O {[%clk 0:02:56]} 8. d5 {[%clk 0:02:38]}  exd5 {[%clk 0:02:53]} 9. Nh4 {[%clk 0:02:37]}  Re8 {[%clk 0:02:52]} 10. Bxb4 {[%clk 0:02:25]}  cxb4 {[%clk 0:02:53]} 11. cxd5 {[%clk 0:02:26]}  d6 {[%clk 0:02:50]} 12. a3 {[%clk 0:02:22]}  bxa3 {[%clk 0:02:37]} 13. Rxa3 {[%clk 0:02:17]}  Nbd7 {[%clk 0:02:31]} 14. Nc3 {[%clk 0:02:14]}  a6 {[%clk 0:02:25]} 15. Nf5 {[%clk 0:02:09]}  Ne5 {[%clk 0:02:23]} 16. Ra1 {[%clk 0:01:51]}  b5 {[%clk 0:02:22]} 17. e4 {[%clk 0:01:40]}  g6 {[%clk 0:02:15]} 18. Nd4 {[%clk 0:01:39]}  Qb6 {[%clk 0:02:16]} 19. Re1 {[%clk 0:01:31]}  Rac8 {[%clk 0:02:14]} 20. Nb3 {[%clk 0:00:57]}  Rc4 {[%clk 0:01:37]} 21. Bf1 {[%clk 0:00:49]}  Rb4 {[%clk 0:01:37]} 22. Na2 {[%clk 0:00:41]}  Neg4 {[%clk 0:01:33]} 23. Re2 {[%clk 0:00:27]}  Rbxe4 {[%clk 0:01:31]} 24. Rd2 {[%clk 0:00:23]}  b4 {[%clk 0:01:18]} 25. h3 {[%clk 0:00:21]}  Ne5 {[%clk 0:00:48]} 26. Bg2 {[%clk 0:00:21]}  Rc4 {[%clk 0:00:48]} 27. Nac1 {[%clk 0:00:20]}  Ne4 {[%clk 0:00:46]} 28. Rd4 {[%clk 0:00:18]}  Bxd5 {[%clk 0:00:39]} 29. Bxe4 {[%clk 0:00:08]}  Bxe4 {[%clk 0:00:38]} 30. Rxd6 {[%clk 0:00:07]}  Nf3+ {[%clk 0:00:36]} 31. Kh1 {[%clk 0:00:00]}  Qxf2 {[%clk 0:00:34]} 0-1


[Site "https://www.chess.com"]

[Event "Titled Tuesday Blitz June 13 Late 2023"]
[White "Mendez Fortes, Eduardo Jesus"]
[Black "Kosakowski, Jakub"]
[WhiteFideId "3502376"]
[BlackFideId "1185080"]
[WhiteElo "2307"]
[BlackElo "2488"]
[Result "0-1"]
[Round "6"]
[TimeControl "180+2"]
[Date "2023.06.13"]
[WhiteClock "0:00:52"]
[BlackClock "0:00:45"]
[Board "38"]

1. e4 {[%clk 0:02:57]}  c6 {[%clk 0:02:53]} 2. d4 {[%clk 0:02:57]}  d5 {[%clk 0:02:53]} 3. e5 {[%clk 0:02:58]}  Bf5 {[%clk 0:02:53]} 4. Nf3 {[%clk 0:02:58]}  e6 {[%clk 0:02:53]} 5. Be2 {[%clk 0:02:58]}  Nd7 {[%clk 0:02:53]} 6. Nbd2 {[%clk 0:02:49]}  a5 {[%clk 0:02:49]} 7. a4 {[%clk 0:02:47]}  f6 {[%clk 0:02:47]} 8. exf6 {[%clk 0:02:46]}  Ngxf6 {[%clk 0:02:42]} 9. O-O {[%clk 0:02:46]}  Bd6 {[%clk 0:02:40]} 10. c4 {[%clk 0:02:46]}  O-O {[%clk 0:02:40]} 11. Re1 {[%clk 0:02:46]}  Ne4 {[%clk 0:02:34]} 12. Nf1 {[%clk 0:02:35]}  Qf6 {[%clk 0:02:28]} 13. Ng3 {[%clk 0:02:34]}  Rae8 {[%clk 0:02:22]} 14. Bd3 {[%clk 0:02:23]}  Nxg3 {[%clk 0:02:02]} 15. hxg3 {[%clk 0:02:23]}  Bg4 {[%clk 0:02:02]} 16. Be2 {[%clk 0:02:14]}  e5 {[%clk 0:02:02]} 17. dxe5 {[%clk 0:02:10]}  Nxe5 {[%clk 0:02:02]} 18. Be3 {[%clk 0:01:50]}  Nxc4 {[%clk 0:01:53]} 19. Bd4 {[%clk 0:01:39]}  Qg6 {[%clk 0:01:38]} 20. b3 {[%clk 0:01:22]}  Na3 {[%clk 0:01:03]} 21. Qd2 {[%clk 0:01:00]}  Bxf3 {[%clk 0:00:52]} 22. gxf3 {[%clk 0:00:59]}  Nc2 {[%clk 0:00:51]} 23. Bd3 {[%clk 0:00:54]}  Nxe1 {[%clk 0:00:50]} 24. Rxe1 {[%clk 0:00:52]}  Rxe1+ {[%clk 0:00:49]} 25. Kg2 {[%clk 0:00:52]}  Qe6 {[%clk 0:00:45]} 0-1


[Site "https://www.chess.com"]

[Event "Titled Tuesday Blitz June 13 Late 2023"]
[White "Grigoriants, Sergey"]
[Black "Jaskolka, Tomasz"]
[WhiteFideId "4130804"]
[BlackFideId "1170791"]
[WhiteElo "2502"]
[BlackElo "2155"]
[Result "1-0"]
[Round "6"]
[TimeControl "180+2"]
[Date "2023.06.13"]
[WhiteClock "0:00:16"]
[BlackClock "0:00:10"]
[Board "45"]

1. d4 {[%clk 0:02:54]}  d5 {[%clk 0:03:00]} 2. c4 {[%clk 0:02:54]}  e5 {[%clk 0:03:01]} 3. dxe5 {[%clk 0:02:49]}  d4 {[%clk 0:03:02]} 4. a3 {[%clk 0:02:44]}  a5 {[%clk 0:03:00]} 5. e3 {[%clk 0:02:45]}  Bc5 {[%clk 0:02:58]} 6. exd4 {[%clk 0:02:22]}  Bxd4 {[%clk 0:02:58]} 7. Be2 {[%clk 0:02:22]}  Nc6 {[%clk 0:02:56]} 8. Nf3 {[%clk 0:02:22]}  Be6 {[%clk 0:02:51]} 9. O-O {[%clk 0:02:16]}  Bxe5 {[%clk 0:02:50]} 10. Nxe5 {[%clk 0:02:15]}  Nxe5 {[%clk 0:02:49]} 11. Qb3 {[%clk 0:02:12]}  Nf6 {[%clk 0:02:32]} 12. Rd1 {[%clk 0:02:07]}  Qe7 {[%clk 0:02:30]} 13. Qb5+ {[%clk 0:01:55]}  Bd7 {[%clk 0:02:25]} 14. Qxb7 {[%clk 0:01:54]}  Bc6 {[%clk 0:02:20]} 15. Qb3 {[%clk 0:01:52]}  O-O {[%clk 0:02:19]} 16. Nc3 {[%clk 0:01:45]}  h6 {[%clk 0:01:55]} 17. Bf4 {[%clk 0:01:31]}  Ng6 {[%clk 0:01:52]} 18. Bg3 {[%clk 0:01:31]}  Rab8 {[%clk 0:01:36]} 19. Qc2 {[%clk 0:01:30]}  Ne4 {[%clk 0:01:35]} 20. Nd5 {[%clk 0:01:18]}  Bxd5 {[%clk 0:01:32]} 21. cxd5 {[%clk 0:01:19]}  Nxg3 {[%clk 0:01:31]} 22. hxg3 {[%clk 0:01:20]}  Qe5 {[%clk 0:01:28]} 23. Rd2 {[%clk 0:01:17]}  Ne7 {[%clk 0:01:18]} 24. Bf3 {[%clk 0:01:14]}  Nf5 {[%clk 0:01:11]} 25. Rc1 {[%clk 0:01:03]}  Rfc8 {[%clk 0:00:48]} 26. Qc3 {[%clk 0:01:02]}  Qxc3 {[%clk 0:00:28]} 27. Rxc3 {[%clk 0:01:03]}  Nd6 {[%clk 0:00:29]} 28. Rdc2 {[%clk 0:01:02]}  Rb7 {[%clk 0:00:28]} 29. Rc5 {[%clk 0:01:00]}  a4 {[%clk 0:00:27]} 30. Ra5 {[%clk 0:00:45]}  Rcb8 {[%clk 0:00:27]} 31. Rxa4 {[%clk 0:00:44]}  Rxb2 {[%clk 0:00:28]} 32. Rxc7 {[%clk 0:00:37]}  Ra2 {[%clk 0:00:26]} 33. g4 {[%clk 0:00:34]}  Rb1+ {[%clk 0:00:25]} 34. Kh2 {[%clk 0:00:34]}  Rxf2 {[%clk 0:00:25]} 35. Ra6 {[%clk 0:00:29]}  Nb5 {[%clk 0:00:17]} 36. Rc8+ {[%clk 0:00:28]}  Kh7 {[%clk 0:00:17]} 37. Be4+ {[%clk 0:00:29]}  g6 {[%clk 0:00:17]} 38. Bxb1 {[%clk 0:00:29]}  h5 {[%clk 0:00:14]} 39. gxh5 {[%clk 0:00:28]}  Nd4 {[%clk 0:00:12]} 40. hxg6+ {[%clk 0:00:28]}  fxg6 {[%clk 0:00:13]} 41. Rxg6 {[%clk 0:00:19]}  Nf3+ {[%clk 0:00:08]} 42. Kg3 {[%clk 0:00:19]}  Rxg2+ {[%clk 0:00:09]} 43. Kxg2 {[%clk 0:00:19]}  Nh4+ {[%clk 0:00:09]} 44. Kf2 {[%clk 0:00:19]}  Nf3 {[%clk 0:00:09]} 45. Rg4+ {[%clk 0:00:17]}  Kh6 {[%clk 0:00:10]} 46. Rh8# {[%clk 0:00:16]} 1-0


[Site "https://www.chess.com"]

[Event "Titled Tuesday Blitz June 13 Late 2023"]
[White "Papasimakopoulos, Alexandros"]
[Black "HamedWafa4"]
[WhiteFideId "4244125"]
[WhiteElo "2359"]
[BlackElo "2529"]
[Result "0-1"]
[Round "6"]
[TimeControl "180+2"]
[Date "2023.06.13"]
[WhiteClock "0:00:00"]
[BlackClock "0:00:14"]
[Board "55"]

1. d4 {[%clk 0:02:58]}  Nf6 {[%clk 0:02:58]} 2. c4 {[%clk 0:02:58]}  e6 {[%clk 0:02:53]} 3. Nc3 {[%clk 0:02:59]}  Bb4 {[%clk 0:02:52]} 4. Qc2 {[%clk 0:02:59]}  O-O {[%clk 0:02:52]} 5. a3 {[%clk 0:02:59]}  Bxc3+ {[%clk 0:02:51]} 6. Qxc3 {[%clk 0:03:00]}  b6 {[%clk 0:02:52]} 7. Bg5 {[%clk 0:02:59]}  Bb7 {[%clk 0:02:52]} 8. f3 {[%clk 0:02:59]}  h6 {[%clk 0:02:45]} 9. Bh4 {[%clk 0:02:55]}  d5 {[%clk 0:02:42]} 10. e3 {[%clk 0:02:52]}  Nbd7 {[%clk 0:02:41]} 11. cxd5 {[%clk 0:02:48]}  exd5 {[%clk 0:02:36]} 12. Bd3 {[%clk 0:02:45]}  c5 {[%clk 0:02:35]} 13. Ne2 {[%clk 0:02:44]}  Rc8 {[%clk 0:02:35]} 14. Qd2 {[%clk 0:02:42]}  Re8 {[%clk 0:02:34]} 15. O-O {[%clk 0:02:36]}  Qe7 {[%clk 0:02:34]} 16. Bf2 {[%clk 0:02:36]}  Nf8 {[%clk 0:02:34]} 17. Ng3 {[%clk 0:02:32]}  Ne6 {[%clk 0:02:21]} 18. Nf5 {[%clk 0:02:29]}  Qd7 {[%clk 0:02:20]} 19. Bg3 {[%clk 0:02:29]}  Red8 {[%clk 0:01:52]} 20. Be5 {[%clk 0:02:28]}  Ne8 {[%clk 0:01:46]} 21. h4 {[%clk 0:02:09]}  c4 {[%clk 0:01:44]} 22. Bc2 {[%clk 0:02:08]}  Qe7 {[%clk 0:01:39]} 23. g4 {[%clk 0:01:58]}  Qd7 {[%clk 0:01:38]} 24. h5 {[%clk 0:01:45]}  Nf8 {[%clk 0:01:16]} 25. Qh2 {[%clk 0:01:29]}  c3 {[%clk 0:01:07]} 26. b3 {[%clk 0:01:26]}  Ba6 {[%clk 0:01:06]} 27. Rf2 {[%clk 0:01:23]}  f6 {[%clk 0:01:03]} 28. Bg3 {[%clk 0:01:19]}  Ne6 {[%clk 0:01:02]} 29. Rd1 {[%clk 0:01:15]}  Ng5 {[%clk 0:01:01]} 30. Bf4 {[%clk 0:01:15]}  Ne6 {[%clk 0:00:58]} 31. e4 {[%clk 0:01:14]}  Nxf4 {[%clk 0:00:56]} 32. Qxf4 {[%clk 0:01:15]}  Qc7 {[%clk 0:00:47]} 33. e5 {[%clk 0:01:00]}  fxe5 {[%clk 0:00:43]} 34. dxe5 {[%clk 0:01:01]}  Bb7 {[%clk 0:00:38]} 35. Nd4 {[%clk 0:00:56]}  Qf7 {[%clk 0:00:34]} 36. Qe3 {[%clk 0:00:52]}  Nc7 {[%clk 0:00:33]} 37. Qd3 {[%clk 0:00:50]}  Ne6 {[%clk 0:00:32]} 38. Qh7+ {[%clk 0:00:50]}  Kf8 {[%clk 0:00:32]} 39. Bg6 {[%clk 0:00:48]}  Ng5 {[%clk 0:00:21]} 40. Bxf7 {[%clk 0:00:26]}  Nxh7 {[%clk 0:00:21]} 41. Bg6 {[%clk 0:00:26]}  Ng5 {[%clk 0:00:22]} 42. Rc2 {[%clk 0:00:19]}  Kg8 {[%clk 0:00:19]} 43. Kg2 {[%clk 0:00:17]}  Rf8 {[%clk 0:00:19]} 44. Kg3 {[%clk 0:00:17]}  Ba6 {[%clk 0:00:17]} 45. f4 {[%clk 0:00:14]}  Ne4+ {[%clk 0:00:16]} 46. Bxe4 {[%clk 0:00:15]}  dxe4 {[%clk 0:00:17]} 47. Ne6 {[%clk 0:00:13]}  Rfe8 {[%clk 0:00:17]} 48. f5 {[%clk 0:00:12]}  Bd3 {[%clk 0:00:17]} 49. Rcc1 {[%clk 0:00:13]}  c2 {[%clk 0:00:17]} 50. Rd2 {[%clk 0:00:13]}  Rc3 {[%clk 0:00:16]} 51. Kf4 {[%clk 0:00:13]}  Rxb3 {[%clk 0:00:16]} 52. g5 {[%clk 0:00:08]}  hxg5+ {[%clk 0:00:16]} 53. Nxg5 {[%clk 0:00:09]}  Rc8 {[%clk 0:00:16]} 54. e6 {[%clk 0:00:07]}  Rb1 {[%clk 0:00:16]} 55. Rcxc2 {[%clk 0:00:03]}  Rxc2 {[%clk 0:00:15]} 56. e7 {[%clk 0:00:03]}  Rf1+ {[%clk 0:00:14]} 57. Ke5 {[%clk 0:00:02]}  Rc5+ {[%clk 0:00:14]} 58. Kd6 {[%clk 0:00:02]}  Bb5 {[%clk 0:00:14]} 59. Rg2 {[%clk 0:00:00]}  Rd1+ {[%clk 0:00:14]} 0-1


[Site "https://www.chess.com"]

[Event "Titled Tuesday Blitz June 13 Late 2023"]
[White "Bellahcene, Bilel"]
[Black "Aggelis, Nikolaos"]
[WhiteFideId "696358"]
[BlackFideId "4213220"]
[WhiteElo "2552"]
[BlackElo "2189"]
[Result "1/2-1/2"]
[Round "6"]
[TimeControl "180+2"]
[Date "2023.06.13"]
[WhiteClock "0:00:55"]
[BlackClock "0:01:52"]
[Board "61"]

1. e4 {[%clk 0:03:00]}  c6 {[%clk 0:02:56]} 2. d4 {[%clk 0:03:00]}  d5 {[%clk 0:02:57]} 3. exd5 {[%clk 0:03:00]}  cxd5 {[%clk 0:02:57]} 4. Nf3 {[%clk 0:03:01]}  Nf6 {[%clk 0:02:55]} 5. Ne5 {[%clk 0:03:01]}  Nc6 {[%clk 0:02:53]} 6. Bb5 {[%clk 0:03:01]}  Bd7 {[%clk 0:02:54]} 7. Nxd7 {[%clk 0:03:02]}  Qxd7 {[%clk 0:02:54]} 8. c3 {[%clk 0:03:02]}  a6 {[%clk 0:02:54]} 9. Bd3 {[%clk 0:03:02]}  e6 {[%clk 0:02:54]} 10. Nd2 {[%clk 0:03:02]}  Be7 {[%clk 0:02:52]} 11. O-O {[%clk 0:03:01]}  O-O {[%clk 0:02:53]} 12. f4 {[%clk 0:03:02]}  Rfe8 {[%clk 0:02:46]} 13. Qe2 {[%clk 0:03:01]}  b5 {[%clk 0:02:41]} 14. a3 {[%clk 0:03:00]}  Na5 {[%clk 0:02:33]} 15. Nf3 {[%clk 0:02:59]}  Nc4 {[%clk 0:02:32]} 16. Ne5 {[%clk 0:02:59]}  Qc7 {[%clk 0:02:27]} 17. Kh1 {[%clk 0:02:46]}  a5 {[%clk 0:02:26]} 18. a4 {[%clk 0:02:39]}  b4 {[%clk 0:02:24]} 19. Nxc4 {[%clk 0:02:36]}  dxc4 {[%clk 0:02:24]} 20. Bxc4 {[%clk 0:02:37]}  bxc3 {[%clk 0:02:25]} 21. bxc3 {[%clk 0:02:38]}  Rec8 {[%clk 0:02:23]} 22. Ba2 {[%clk 0:02:34]}  Qxc3 {[%clk 0:02:23]} 23. Bd2 {[%clk 0:01:25]}  Qxd4 {[%clk 0:02:16]} 24. Be3 {[%clk 0:01:20]}  Qe4 {[%clk 0:02:12]} 25. Bb1 {[%clk 0:01:20]}  Qd5 {[%clk 0:02:07]} 26. f5 {[%clk 0:01:14]}  e5 {[%clk 0:02:00]} 27. Ba2 {[%clk 0:00:59]}  Qe4 {[%clk 0:01:59]} 28. Bb1 {[%clk 0:00:56]}  Qd5 {[%clk 0:01:52]} 29. Ba2 {[%clk 0:00:55]}  Qe4 {[%clk 0:01:52]} 30. Bb1 {[%clk 0:00:55]}  Qd5 {[%clk 0:01:52]} 1/2-1/2


[Site "https://www.chess.com"]

[Event "Titled Tuesday Blitz June 13 Late 2023"]
[White "Kucuksari, Kaan"]
[Black "Estrada Nieto, Julian"]
[WhiteFideId "6380166"]
[BlackFideId "5101018"]
[WhiteElo "2364"]
[BlackElo "2161"]
[Result "1-0"]
[Round "6"]
[TimeControl "180+2"]
[Date "2023.06.13"]
[WhiteClock "0:01:35"]
[BlackClock "0:00:00"]
[Board "62"]

1. e4 {[%clk 0:03:00]}  e5 {[%clk 0:02:59]} 2. Nf3 {[%clk 0:03:01]}  Nc6 {[%clk 0:03:00]} 3. Bb5 {[%clk 0:03:01]}  a6 {[%clk 0:03:00]} 4. Ba4 {[%clk 0:03:01]}  Nf6 {[%clk 0:03:00]} 5. O-O {[%clk 0:03:01]}  Be7 {[%clk 0:03:01]} 6. Re1 {[%clk 0:03:02]}  b5 {[%clk 0:03:01]} 7. Bb3 {[%clk 0:03:02]}  d6 {[%clk 0:03:01]} 8. h3 {[%clk 0:02:58]}  Na5 {[%clk 0:02:57]} 9. d4 {[%clk 0:02:58]}  Nxb3 {[%clk 0:02:49]} 10. axb3 {[%clk 0:02:59]}  Nd7 {[%clk 0:02:46]} 11. Nc3 {[%clk 0:02:58]}  Bb7 {[%clk 0:02:43]} 12. Nd5 {[%clk 0:02:58]}  O-O {[%clk 0:02:36]} 13. Nxe7+ {[%clk 0:02:50]}  Qxe7 {[%clk 0:02:36]} 14. d5 {[%clk 0:02:51]}  f5 {[%clk 0:02:31]} 15. Ng5 {[%clk 0:02:49]}  Nc5 {[%clk 0:02:07]} 16. exf5 {[%clk 0:02:40]}  Rxf5 {[%clk 0:02:02]} 17. b4 {[%clk 0:02:40]}  Na4 {[%clk 0:01:37]} 18. b3 {[%clk 0:02:35]}  Nc3 {[%clk 0:01:18]} 19. Qd3 {[%clk 0:02:34]}  Rxg5 {[%clk 0:01:08]} 20. Bxg5 {[%clk 0:02:33]}  Qxg5 {[%clk 0:01:08]} 21. Qxc3 {[%clk 0:02:34]}  Bxd5 {[%clk 0:01:05]} 22. Qg3 {[%clk 0:02:17]}  Qf5 {[%clk 0:00:45]} 23. Re3 {[%clk 0:02:11]}  Qxc2 {[%clk 0:00:35]} 24. Rc3 {[%clk 0:02:11]}  Qb2 {[%clk 0:00:33]} 25. Rd1 {[%clk 0:02:11]}  c6 {[%clk 0:00:25]} 26. Qd3 {[%clk 0:02:00]}  Rf8 {[%clk 0:00:17]} 27. Rd2 {[%clk 0:01:57]}  Qa1+ {[%clk 0:00:13]} 28. Kh2 {[%clk 0:01:58]}  Qe1 {[%clk 0:00:10]} 29. Re2 {[%clk 0:01:56]}  Qf1 {[%clk 0:00:09]} 30. f3 {[%clk 0:01:50]}  h6 {[%clk 0:00:07]} 31. Qe3 {[%clk 0:01:44]}  Qb1 {[%clk 0:00:06]} 32. Rec2 {[%clk 0:01:40]}  Qf1 {[%clk 0:00:00]} 33. Rc1 {[%clk 0:01:35]} 1-0


[Site "https://www.chess.com"]

[Event "Titled Tuesday Blitz June 13 Late 2023"]
[White "Rios Escobar, Adan"]
[Black "Arabidze, Meri"]
[WhiteFideId "3403645"]
[BlackFideId "13604040"]
[WhiteElo "2497"]
[BlackElo "2405"]
[Result "0-1"]
[Round "6"]
[TimeControl "180+2"]
[Date "2023.06.13"]
[WhiteClock "0:00:00"]
[BlackClock "0:01:22"]
[Board "63"]

1. d4 {[%clk 0:02:58]}  Nf6 {[%clk 0:02:59]} 2. g3 {[%clk 0:02:58]}  e6 {[%clk 0:02:59]} 3. c4 {[%clk 0:02:58]}  d5 {[%clk 0:02:59]} 4. Nf3 {[%clk 0:02:58]}  Bb4+ {[%clk 0:02:58]} 5. Nbd2 {[%clk 0:02:58]}  O-O {[%clk 0:02:55]} 6. Bg2 {[%clk 0:02:58]}  b6 {[%clk 0:02:55]} 7. O-O {[%clk 0:02:57]}  Bb7 {[%clk 0:02:55]} 8. Qc2 {[%clk 0:02:58]}  Nbd7 {[%clk 0:02:53]} 9. Rd1 {[%clk 0:02:56]}  Bd6 {[%clk 0:02:44]} 10. a3 {[%clk 0:02:49]}  Rc8 {[%clk 0:02:41]} 11. b4 {[%clk 0:02:48]}  c5 {[%clk 0:02:37]} 12. bxc5 {[%clk 0:02:48]}  bxc5 {[%clk 0:02:37]} 13. Rb1 {[%clk 0:02:48]}  Ba8 {[%clk 0:02:37]} 14. cxd5 {[%clk 0:02:42]}  cxd4 {[%clk 0:02:35]} 15. Qa4 {[%clk 0:02:40]}  Bxd5 {[%clk 0:02:32]} 16. Qxd4 {[%clk 0:02:37]}  Bc5 {[%clk 0:02:32]} 17. Qh4 {[%clk 0:02:37]}  Be7 {[%clk 0:02:24]} 18. Bb2 {[%clk 0:02:18]}  Rb8 {[%clk 0:02:07]} 19. Qh3 {[%clk 0:02:10]}  Ba2 {[%clk 0:01:57]} 20. Bxf6 {[%clk 0:01:36]}  Nxf6 {[%clk 0:01:57]} 21. Rxb8 {[%clk 0:01:33]}  Qxb8 {[%clk 0:01:58]} 22. Ng5 {[%clk 0:01:22]}  h6 {[%clk 0:01:54]} 23. Nge4 {[%clk 0:01:21]}  Rd8 {[%clk 0:01:53]} 24. Nc3 {[%clk 0:00:57]}  Bb3 {[%clk 0:01:41]} 25. Nxb3 {[%clk 0:00:48]}  Rxd1+ {[%clk 0:01:42]} 26. Nxd1 {[%clk 0:00:46]}  Qxb3 {[%clk 0:01:43]} 27. Ne3 {[%clk 0:00:42]}  Qxa3 {[%clk 0:01:39]} 28. Qh4 {[%clk 0:00:41]}  Qa1+ {[%clk 0:01:37]} 29. Bf1 {[%clk 0:00:40]}  a5 {[%clk 0:01:37]} 30. Qc4 {[%clk 0:00:23]}  a4 {[%clk 0:01:37]} 31. Qc8+ {[%clk 0:00:23]}  Bf8 {[%clk 0:01:36]} 32. Nc2 {[%clk 0:00:11]}  Qc1 {[%clk 0:01:34]} 33. e3 {[%clk 0:00:08]}  a3 {[%clk 0:01:32]} 34. Qc4 {[%clk 0:00:08]}  Qb2 {[%clk 0:01:25]} 35. Ne1 {[%clk 0:00:02]}  a2 {[%clk 0:01:23]} 36. Nd3 {[%clk 0:00:02]}  Qb1 {[%clk 0:01:22]} 37. Nb4 {[%clk 0:00:00]}  a1=Q {[%clk 0:01:22]} 0-1


[Site "https://www.chess.com"]